bitfinex/quotes_BTCUSD_20251208
["timestamp","ask_amount","ask_price","bid_price","bid_amount"]
[1765190598478,0.00184411,92212.0,92211.0,0.23434386]
[1765190598681,0.00184411,92212.0,92211.0,0.2568671]
[1765190599096,0.00184411,92212.0,92211.0,0.2735071]
[1765190599303,0.21873562,92212.0,92211.0,0.01764]
[1765190599772,0.21873562,92212.0,92211.0,0.001]
[1765190600519,0.00184411,92212.0,92211.0,0.001]
[1765190600720,0.00184411,92212.0,92211.0,0.25753386]
[1765190601190,0.00184411,92212.0,92211.0,0.25653386]
[1765190601390,0.00184411,92212.0,92211.0,0.23353386]
[1765190601610,0.00184411,92212.0,92211.0,0.01664]
[1765190601815,0.00384411,92212.0,92211.0,0.01664]
[1765190602151,0.00384411,92212.0,92211.0,0.23353386]
[1765190602567,0.00384411,92212.0,92211.0,0.26260194]
[1765190603176,0.00384411,92212.0,92211.0,0.28560194]
[1765190603384,0.00223124,92212.0,92211.0,0.28560194]
[1765190604278,0.00223124,92212.0,92211.0,0.27365386]
[1765190604422,0.00023124,92212.0,92211.0,0.29684586]
[1765190605098,0.00023124,92212.0,92211.0,0.29584586]
[1765190605527,0.00023124,92212.0,92211.0,0.29984586]
[1765190606322,0.00023124,92212.0,92211.0,0.27765386]
[1765190606758,0.00023124,92212.0,92211.0,0.23753386]
[1765190606967,0.00023124,92212.0,92211.0,0.23801386]
[1765190607120,0.00023124,92212.0,92211.0,0.22089386]
[1765190607315,0.21712275,92212.0,92211.0,0.004]
[1765190607543,0.22023562,92212.0,92211.0,0.03107411]
[1765190607747,0.22023562,92212.0,92211.0,0.03007411]
[1765190607907,0.22023562,92212.0,92211.0,0.001]
[1765190608107,0.22123562,92212.0,92211.0,0.001]
[1765190608307,0.21689386,92211.0,92210.0,0.02907411]
[1765190608544,0.21850673,92211.0,92210.0,0.02907411]
[1765190610257,0.21850673,92211.0,92208.0,0.01084504]
[1765190610258,0.00161287,92211.0,92208.0,0.01084504]
[1765190610467,0.21850735,92211.0,92208.0,0.01084504]
[1765190610669,0.00161287,92211.0,92208.0,0.2277451]
[1765190610875,0.01445756,92211.0,92208.0,0.01084504]
[1765190611141,0.01245756,92211.0,92208.0,0.01084504]
[1765190611340,0.01245756,92211.0,92209.0,0.216898]
[1765190611519,0.01345756,92211.0,92209.0,0.216898]
[1765190611851,0.22935191,92211.0,92208.0,0.01084504]
[1765190612062,0.00161287,92211.0,92210.0,0.21689621]
[1765190612263,0.00261287,92211.0,92210.0,0.21689621]
[1765190612427,0.00161287,92211.0,92210.0,0.21689621]
[1765190612829,0.00261287,92211.0,92210.0,0.21689621]
[1765190613033,0.00261287,92211.0,92209.0,0.0118]
[1765190613291,0.00261287,92211.0,92210.0,0.21689621]
[1765190613597,0.00261287,92211.0,92210.0,0.25653621]
[1765190613939,0.00161287,92211.0,92210.0,0.25653621]
[1765190614161,0.00261287,92211.0,92210.0,0.25653621]
[1765190616613,0.00261287,92211.0,92210.0,0.21689621]
[1765190616807,0.00261287,92211.0,92209.0,0.0118]
[1765190617312,0.21950709,92211.0,92209.0,0.0118]
[1765190617469,0.21850709,92211.0,92209.0,0.0118]
[1765190617668,0.00161287,92211.0,92209.0,0.22869855]
[1765190617868,0.00261287,92211.0,92210.0,0.21689621]
[1765190618085,0.00261287,92211.0,92210.0,0.25653621]
[1765190618478,0.001,92211.0,92210.0,0.25653621]
[1765190618678,0.00023124,92212.0,92211.0,0.21689386]
[1765190618886,0.00023124,92212.0,92211.0,0.25653386]
[1765190620378,0.00023124,92212.0,92211.0,0.27872586]
[1765190620766,0.00023124,92212.0,92211.0,0.33482438]
[1765190621726,0.00123124,92212.0,92211.0,0.31263238]
[1765190621957,0.00023124,92212.0,92211.0,0.31263238]
[1765190623247,0.00023124,92212.0,92211.0,0.27465386]
[1765190623451,4e-05,92218.0,92216.0,0.21688142]
[1765190623803,0.00165287,92218.0,92213.0,0.03879254]
[1765190624008,0.21853052,92218.0,92216.0,0.02909409]
[1765190624166,0.21853052,92218.0,92217.0,0.01138]
[1765190624600,0.00165287,92218.0,92217.0,0.02686]
[1765190624800,0.00165287,92218.0,92217.0,0.05595573]
[1765190625004,0.00265287,92218.0,92217.0,0.05595573]
[1765190625169,0.00165287,92218.0,92217.0,0.05595573]
[1765190625589,0.00365287,92218.0,92217.0,0.05595573]
[1765190625984,0.22053026,92218.0,92217.0,0.05595573]
[1765190626191,0.00365287,92218.0,92217.0,0.05595573]
[1765190626609,0.00365287,92218.0,92217.0,0.27283548]
[1765190627599,0.00365287,92218.0,92217.0,0.24373975]
[1765190627803,0.00365287,92218.0,92217.0,0.26871975]
[1765190632023,0.00204,92218.0,92217.0,0.26871975]
[1765190632225,4e-05,92218.0,92217.0,0.26871975]
[1765190632548,0.00044464,92218.0,92217.0,0.26971975]
[1765190644051,0.00044464,92218.0,92217.0,0.29191175]
[1765190645150,0.00044464,92218.0,92217.0,0.26971975]
[1765190645809,0.00044464,92218.0,92217.0,0.29191175]
[1765190658296,0.00044464,92218.0,92217.0,0.26971975]
[1765190658500,0.00044464,92218.0,92217.0,0.61491175]
[1765190666143,0.00044464,92218.0,92217.0,0.59271975]
[1765190666770,0.00044464,92218.0,92217.0,0.61491175]
[1765190673998,0.00044464,92218.0,92217.0,0.60205837]
[1765190678734,0.00044464,92218.0,92217.0,0.57986637]
[1765190678998,0.00044464,92218.0,92217.0,0.60205837]
[1765190679544,0.00044464,92218.0,92217.0,0.01685]
[1765190679748,0.00044464,92218.0,92217.0,0.21787975]
[1765190680087,0.00044464,92218.0,92217.0,0.23372975]
[1765190680293,0.00044464,92218.0,92217.0,0.25784975]
[1765190681077,0.00044464,92218.0,92217.0,0.25684975]
[1765190681259,0.00044464,92218.0,92217.0,0.25784975]
[1765190681455,0.00144464,92218.0,92217.0,0.25784975]
[1765190681865,0.00144464,92218.0,92217.0,0.25684975]
[1765190682687,0.00144464,92218.0,92217.0,0.03997]
[1765190683062,0.00144464,92218.0,92217.0,0.25649975]
[1765190684588,0.00144464,92218.0,92217.0,0.61881175]
[1765190684796,0.00144464,92218.0,92217.0,0.65136498]
[1765190685581,0.00144464,92218.0,92217.0,0.65236498]
[1765190685972,0.00044464,92218.0,92217.0,0.65236498]
[1765190688410,0.00044464,92218.0,92217.0,0.65136498]
[1765190688835,0.00044464,92218.0,92217.0,0.65236498]
[1765190690081,0.00044464,92218.0,92217.0,0.65736498]
[1765190690219,0.00044464,92218.0,92217.0,0.73385473]
[1765190690582,0.00044464,92218.0,92217.0,0.73685473]
[1765190694227,0.00044464,92218.0,92217.0,0.71466273]
[1765190694434,0.00044464,92218.0,92217.0,0.73685473]
[1765190696257,0.00044464,92218.0,92217.0,0.65936498]
[1765190696593,0.00044464,92218.0,92217.0,0.63717298]
[1765190696742,0.00044464,92218.0,92217.0,0.63417298]
[1765190696953,0.00044464,92218.0,92217.0,0.62917298]
[1765190697153,0.00044464,92218.0,92217.0,0.63417298]
[1765190697371,0.00044464,92218.0,92217.0,0.65336498]
[1765190697576,0.00044464,92218.0,92217.0,0.65136498]
[1765190697941,0.00044464,92218.0,92217.0,0.65336498]
[1765190698770,0.00044464,92218.0,92217.0,0.65636498]
[1765190706316,0.00044464,92218.0,92217.0,0.73385473]
[1765190706636,0.00044464,92218.0,92217.0,0.65636498]
[1765190707283,0.00044464,92218.0,92217.0,0.63417298]
[1765190707485,0.00044464,92218.0,92217.0,0.65636498]
[1765190708334,0.00044464,92218.0,92217.0,0.63924498]
[1765190708775,0.00044464,92218.0,92217.0,0.65636498]
[1765190711182,0.00044464,92218.0,92217.0,0.73385473]
[1765190713274,0.00044464,92218.0,92217.0,0.65636498]
[1765190713884,0.00044464,92218.0,92217.0,0.62381175]
[1765190714325,0.00044464,92218.0,92217.0,0.70133815]
[1765190714932,0.00044464,92218.0,92217.0,0.62381175]
[1765190715134,0.00044464,92218.0,92217.0,0.70138545]
[1765190715356,0.00044464,92218.0,92217.0,0.62381175]
[1765190717343,0.00044464,92218.0,92217.0,0.63465279]
[1765190725930,0.00044464,92218.0,92217.0,0.71223005]
[1765190727865,1.764e-05,92218.0,92217.0,0.71223005]
[1765190729867,1.764e-05,92218.0,92217.0,0.63465279]
[1765190745217,1.764e-05,92218.0,92217.0,0.71224029]
[1765190745456,1.764e-05,92218.0,92217.0,0.63465279]
[1765190750318,1.764e-05,92218.0,92217.0,0.71223468]
[1765190751435,1.764e-05,92218.0,92217.0,0.63465279]
[1765190753455,1.764e-05,92218.0,92217.0,0.61753279]
[1765190753659,0.00163051,92218.0,92217.0,0.005]
[1765190753864,0.2332079,92218.0,92217.0,0.005]
[1765190754093,0.2185079,92218.0,92217.0,0.005]
[1765190754504,0.00163051,92218.0,92217.0,0.003]
[1765190754724,0.00163051,92218.0,92217.0,0.22087975]
[1765190754967,0.00163051,92218.0,92217.0,0.21787975]
[1765190755173,0.00163051,92218.0,92217.0,0.21687975]
[1765190755384,0.00163051,92218.0,92217.0,0.21787975]
[1765190755600,0.00263051,92218.0,92217.0,0.21687975]
[1765190756011,0.00663051,92218.0,92217.0,0.21687975]
[1765190756470,0.00663051,92218.0,92216.0,0.21688183]
[1765190756684,0.00661287,92218.0,92215.0,0.21688401]
[1765190757275,0.01645673,92218.0,92212.0,0.22773425]
[1765190757477,0.22772658,92216.0,92213.0,0.22773155]
[1765190757656,0.0108441,92216.0,92214.0,0.21688607]
[1765190757867,0.21688325,92216.0,92213.0,0.22773155]
[1765190758752,0.22772373,92217.0,92214.0,0.21688536]
[1765190758950,0.003,92216.0,92215.0,0.22772867]
[1765190759779,0.00161287,92218.0,92217.0,0.21687975]
[1765190759986,0.01084245,92230.0,92225.0,0.01084304]
[1765190760208,0.22769172,92230.0,92227.0,0.01139]
[1765190760412,0.22769172,92230.0,92227.0,0.22824581]
[1765190760638,0.22769172,92230.0,92227.0,0.23908862]
[1765190760953,0.22769172,92230.0,92227.0,0.01139]
[1765190761069,0.21685388,92228.0,92227.0,0.01139]
[1765190761271,0.22769228,92230.0,92227.0,0.01139]
[1765190761508,0.0108414,92239.0,92235.0,0.01084187]
[1765190761696,0.21683316,92237.0,92235.0,0.01084187]
[1765190761907,0.21683272,92237.0,92236.0,0.01139]
[1765190762357,0.22767435,92237.0,92233.0,0.22768377]
[1765190762798,0.21683632,92236.0,92233.0,0.0108421]
[1765190763013,0.21683977,92234.0,92232.0,0.22768579]
[1765190763218,0.2168353,92236.0,92232.0,0.01084222]
[1765190763420,0.21684,92234.0,92231.0,0.02223234]
[1765190763579,0.22768198,92234.0,92231.0,0.01139]
[1765190764385,0.22768198,92234.0,92231.0,0.22823663]
[1765190764854,0.01445485,92234.0,92227.0,0.21685623]
[1765190765061,0.01084222,92232.0,92229.0,0.21685063]
[1765190765262,0.22768752,92232.0,92228.0,0.22769645]
[1765190765492,0.22768752,92232.0,92229.0,0.2168505]
[1765190765908,0.22768752,92232.0,92219.0,0.03880605]
[1765190765909,0.01084281,92227.0,92219.0,0.03880605]
[1765190766139,0.01084457,92212.0,92209.0,0.02908253]
[1765190766333,0.01084457,92212.0,92204.0,0.03992804]
[1765190766334,0.23527763,92208.0,92204.0,0.03992804]
[1765190766546,0.23527763,92208.0,92204.0,0.02908253]
[1765190766547,0.01084516,92207.0,92204.0,0.02908253]
[1765190766750,0.21691032,92204.0,92203.0,0.02908253]
[1765190766964,0.22775093,92206.0,92203.0,0.02908253]
[1765190767168,0.22775116,92206.0,92203.0,0.21691262]
[1765190767387,0.22775116,92206.0,92202.0,0.02908253]
[1765190767388,0.01084539,92205.0,92202.0,0.02908253]
[1765190767632,0.01084551,92204.0,92201.0,0.02908253]
[1765190767842,0.01084539,92205.0,92202.0,0.21691447]
[1765190768046,0.01084528,92206.0,92203.0,0.001]
[1765190768194,0.01084516,92207.0,92203.0,0.001]
[1765190768403,0.01084516,92207.0,92203.0,0.002]
[1765190768404,0.21691032,92204.0,92203.0,0.002]
[1765190768610,0.0108461,92199.0,92196.0,0.02908253]
[1765190768940,0.21692066,92200.0,92197.0,0.22777309]
[1765190769109,0.01084575,92202.0,92197.0,0.01084633]
[1765190769497,0.22776146,92202.0,92199.0,0.22776613]
[1765190769816,0.01084551,92204.0,92201.0,0.01084586]
[1765190770016,0.22775837,92203.0,92199.0,0.22776739]
[1765190770219,0.22775837,92203.0,92200.0,0.21691968]
[1765190770578,0.01084551,92204.0,92201.0,0.22776248]
[1765190770748,0.21690948,92205.0,92202.0,0.01084575]
[1765190771386,0.21690019,92209.0,92204.0,0.22775556]
[1765190771590,0.23527597,92208.0,92204.0,0.22775556]
[1765190771960,0.01084516,92207.0,92204.0,0.22775556]
[1765190772283,0.01084539,92205.0,92202.0,0.25158852]
[1765190772489,0.01084539,92205.0,92202.0,0.22775852]
[1765190772685,0.21691075,92204.0,92201.0,0.22776314]
[1765190772891,0.21691512,92202.0,92199.0,0.22776746]
[1765190773066,0.2277584,92203.0,92200.0,0.2169197]
[1765190773267,0.22777756,92197.0,92193.0,0.2169362]
[1765190773470,0.01084633,92197.0,92194.0,0.01084669]
[1765190773684,0.22411072,92196.0,92193.0,0.22778261]
[1765190773886,0.22411072,92196.0,92189.0,0.22961133]
[1765190773887,0.02554692,92192.0,92189.0,0.00127653]
[1765190774226,0.21694326,92190.0,92189.0,0.00127653]
[1765190774779,0.23164326,92190.0,92189.0,0.00127653]
[1765190775179,0.23164326,92190.0,92189.0,0.00227653]
[1765190775379,0.0147,92190.0,92189.0,0.00227653]
[1765190775581,0.21694091,92191.0,92189.0,0.00227653]
[1765190775582,0.21694114,92191.0,92189.0,0.00227653]
[1765190775781,0.21694114,92191.0,92189.0,0.00627653]
[1765190775955,0.21694114,92191.0,92189.0,0.00227653]
[1765190776376,0.21694114,92191.0,92189.0,0.00127653]
[1765190776594,0.21694326,92190.0,92189.0,0.00127653]
[1765190777018,0.21794326,92190.0,92189.0,0.00127653]
[1765190778592,0.21794326,92190.0,92189.0,0.21822215]
[1765190778593,0.001,92190.0,92189.0,0.21822215]
[1765190779885,0.001,92190.0,92189.0,0.25937215]
[1765190780292,0.001,92190.0,92189.0,0.28156415]
[1765190780694,0.03257122,92196.0,92195.0,0.2169315]
[1765190780986,0.03257122,92196.0,92194.0,0.0118]
[1765190781368,0.03257122,92196.0,92195.0,0.2169315]
[1765190781572,0.01084622,92198.0,92196.0,0.2169284]
[1765190781772,0.03257122,92197.0,92196.0,0.2169284]
[1765190783102,0.21692472,92198.0,92196.0,0.2169284]
[1765190783299,0.24949594,92198.0,92195.0,0.22777807]
[1765190783544,0.21692786,92197.0,92194.0,0.23957962]
[1765190783745,0.22877419,92197.0,92194.0,0.02264669]
[1765190784002,0.001,92197.0,92196.0,0.23336915]
[1765190784265,0.21690499,92207.0,92203.0,0.01084563]
[1765190784442,0.03256807,92204.0,92203.0,0.22775831]
[1765190784624,0.22775113,92206.0,92202.0,0.22775923]
[1765190784833,0.21690499,92207.0,92203.0,0.01084563]
[1765190785056,0.0325668,92206.0,92201.0,0.23956195]
[1765190785252,0.01084516,92207.0,92201.0,0.23956195]
[1765190785495,0.21690576,92206.0,92202.0,0.01084575]
[1765190785698,0.22775564,92205.0,92202.0,0.01084575]
[1765190786007,0.21691381,92203.0,92201.0,0.02264586]
[1765190786292,0.21691503,92202.0,92201.0,0.0118]
[1765190786503,0.01084551,92204.0,92201.0,0.0118]
[1765190787441,0.001,92202.0,92201.0,0.0118]
[1765190787807,0.01084551,92204.0,92201.0,0.0118]
[1765190788178,0.001,92204.0,92202.0,0.21691406]
[1765190788542,0.001,92204.0,92201.0,0.23956324]
[1765190788960,0.001,92204.0,92202.0,0.21691501]
[1765190789316,0.22775571,92205.0,92202.0,0.21691501]
[1765190789518,0.001,92204.0,92202.0,0.21691501]
[1765190790044,0.22975757,92204.0,92201.0,0.0118]
[1765190790184,0.22875757,92204.0,92201.0,0.22871657]
[1765190790393,0.21691303,92203.0,92201.0,0.0118]
[1765190791068,0.22775757,92204.0,92202.0,0.2169149]
[1765190791299,0.22975757,92204.0,92202.0,0.2169149]
[1765190791498,0.22875757,92204.0,92202.0,0.2169149]
[1765190791941,0.001,92203.0,92202.0,0.2169149]
[1765190792743,0.002,92203.0,92202.0,0.2333549]
[1765190792942,0.001,92203.0,92202.0,0.2802569]
[1765190793911,0.002,92203.0,92202.0,0.2802569]
[1765190795277,0.002,92203.0,92202.0,0.30926978]
[1765190796137,0.001,92203.0,92202.0,0.2802569]
[1765190796538,0.001,92203.0,92202.0,0.2822569]
[1765190796715,0.001,92203.0,92202.0,0.2169149]
[1765190797096,0.001,92203.0,92202.0,0.2199149]
[1765190797839,0.001,92203.0,92202.0,0.2169149]
[1765190799242,0.001,92203.0,92202.0,0.2189149]
[1765190799447,0.001,92203.0,92202.0,0.2600649]
[1765190802124,0.001,92203.0,92202.0,0.2536849]
[1765190802729,0.001,92203.0,92202.0,0.2758769]
[1765190804111,0.21791268,92203.0,92202.0,0.002]
[1765190804323,0.001,92203.0,92202.0,0.21891503]
[1765190804528,0.001,92203.0,92202.0,0.002]
[1765190805381,0.21791268,92203.0,92202.0,0.002]
[1765190806535,0.21692035,92200.0,92198.0,0.02906513]
[1765190806713,0.01084586,92201.0,92198.0,0.24598957]
[1765190806938,0.001,92203.0,92201.0,0.21691738]
[1765190807219,0.001,92203.0,92202.0,0.23273503]
[1765190807415,0.001,92203.0,92202.0,0.25731503]
[1765190808665,0.001,92203.0,92202.0,0.29662703]
[1765190809041,0.001,92203.0,92202.0,0.61962703]
[1765190809256,0.001,92203.0,92202.0,0.67782588]
[1765190809460,0.001,92203.0,92202.0,0.61962703]
[1765190810289,0.001,92203.0,92202.0,0.62362703]
[1765190812340,0.00024883,92226.0,92225.0,0.21686093]
[1765190812586,0.00196721,92226.0,92225.0,0.23268093]
[1765190812819,0.00196721,92226.0,92225.0,0.25726093]
[1765190813771,0.00135434,92226.0,92225.0,0.27945293]
[1765190814804,0.00035434,92226.0,92225.0,0.27945293]
[1765190815202,0.00035434,92226.0,92225.0,0.28045293]
[1765190816654,0.00035434,92226.0,92225.0,0.30950818]
[1765190816805,0.00035434,92226.0,92225.0,0.32662818]
[1765190817326,0.00035434,92226.0,92225.0,0.29757293]
[1765190817942,0.00035434,92226.0,92225.0,0.29657293]
[1765190818349,0.00035434,92226.0,92225.0,0.30057293]
[1765190824967,0.00035434,92226.0,92225.0,0.27838093]
[1765190825099,0.00035434,92226.0,92225.0,0.26126093]
[1765190825441,0.00035434,92226.0,92225.0,0.30057293]
[1765190828622,0.00035434,92226.0,92225.0,0.62357293]
[1765190829628,0.00035434,92226.0,92225.0,0.62057293]
[1765190829841,0.00035434,92226.0,92225.0,0.62557293]
[1765190831030,0.00035434,92226.0,92225.0,0.66418439]
[1765190832111,0.00035434,92226.0,92225.0,0.65918439]
[1765190832731,0.00035434,92226.0,92225.0,0.62257293]
[1765190834954,0.00035434,92226.0,92225.0,0.60038093]
[1765190835134,0.00035434,92226.0,92225.0,0.58326093]
[1765190835535,0.00035434,92226.0,92225.0,0.60545293]
[1765190835950,0.00035434,92226.0,92225.0,0.60345293]
[1765190837042,0.00035434,92226.0,92225.0,0.60545293]
[1765190837380,0.00035434,92226.0,92225.0,0.58326093]
[1765190837536,0.00035434,92226.0,92225.0,0.60038093]
[1765190837903,0.00035434,92226.0,92225.0,0.58326093]
[1765190838345,0.00035434,92226.0,92225.0,0.58126093]
[1765190838748,0.00035434,92226.0,92225.0,0.58226093]
[1765190839786,0.00035434,92226.0,92225.0,0.60445293]
[1765190840182,0.00035434,92226.0,92225.0,0.66256343]
[1765190841212,0.00035434,92226.0,92225.0,0.60445293]
[1765190842182,0.00035434,92226.0,92225.0,0.58226093]
[1765190842795,0.00035434,92226.0,92225.0,0.59938093]
[1765190843139,0.00035434,92226.0,92225.0,0.62157293]
[1765190848484,0.00035434,92226.0,92225.0,0.59938093]
[1765190848682,0.00035434,92226.0,92225.0,0.62157293]
[1765190851123,0.00035434,92226.0,92225.0,0.62057293]
[1765190851333,0.00035434,92226.0,92225.0,0.62357293]
[1765190852369,0.00035434,92226.0,92225.0,0.60645293]
[1765190852663,0.00035434,92226.0,92225.0,0.62357293]
[1765190854231,0.00035434,92226.0,92225.0,0.62057293]
[1765190854414,0.00035434,92226.0,92225.0,0.62157293]
[1765190854801,0.00035434,92226.0,92225.0,0.62057293]
[1765190855005,0.00035434,92226.0,92225.0,0.62257293]
[1765190857543,0.00035434,92226.0,92225.0,0.70015482]
[1765190861000,0.00035434,92226.0,92225.0,0.62257293]
[1765190862724,0.00035434,92226.0,92225.0,0.68409592]
[1765190863355,0.00035434,92226.0,92225.0,0.68609592]
[1765190863784,0.00035434,92226.0,92225.0,0.68409592]
[1765190864203,0.00035434,92226.0,92225.0,0.68609592]
[1765190865597,0.0002,92250.0,92249.0,0.23899651]
[1765190865950,0.0002,92250.0,92249.0,0.29037651]
[1765190866898,0.0012,92250.0,92249.0,0.29037651]
[1765190867315,0.0032,92250.0,92249.0,0.32909712]
[1765190867514,0.0002,92250.0,92249.0,0.33009712]
[1765190867956,0.0002,92250.0,92249.0,0.33109712]
[1765190868320,0.0002,92250.0,92249.0,0.29237651]
[1765190871197,0.00089334,92250.0,92249.0,0.29237651]
[1765190873771,0.00089334,92250.0,92249.0,0.27018451]
[1765190874630,0.00089334,92250.0,92249.0,0.26918451]
[1765190874840,0.00350621,92250.0,92249.0,0.21780451]
[1765190875389,0.00350621,92250.0,92249.0,0.21680451]
[1765190876267,0.00350621,92250.0,92249.0,0.27863651]
[1765190876670,0.00250621,92250.0,92249.0,0.27863651]
[1765190876872,0.00450621,92250.0,92249.0,0.27863651]
[1765190877453,0.00450621,92250.0,92249.0,0.25644451]
[1765190877751,0.00450621,92250.0,92249.0,0.27863651]
[1765190879229,0.00289334,92250.0,92249.0,0.27963651]
[1765190879745,0.00089334,92250.0,92249.0,0.27963651]
[1765190880976,0.00089334,92250.0,92249.0,0.23304451]
[1765190881175,0.00089334,92250.0,92249.0,0.21780451]
[1765190881583,0.00089334,92250.0,92249.0,0.001]
[1765190881827,0.00089334,92250.0,92248.0,0.24581631]
[1765190882004,0.0002,92250.0,92248.0,0.24581737]
[1765190882201,0.0002,92250.0,92249.0,0.21680451]
[1765190882645,0.0002,92250.0,92248.0,0.26891737]
[1765190882833,0.0002,92250.0,92249.0,0.25611451]
[1765190883008,0.0022,92250.0,92249.0,0.25611451]
[1765190884035,0.00381287,92250.0,92248.0,0.02901169]
[1765190884397,0.00381287,92250.0,92242.0,0.2521702]
[1765190884398,0.24781738,92249.0,92247.0,0.02901169]
[1765190884614,0.24781738,92249.0,92237.0,0.05808092]
[1765190884615,0.21681626,92244.0,92243.0,0.02901169]
[1765190884835,0.21682332,92241.0,92240.0,0.02901169]
[1765190885028,0.21682567,92240.0,92239.0,0.02901169]
[1765190885236,0.2276619,92243.0,92235.0,0.03866532]
[1765190885436,0.0124538,92243.0,92239.0,0.02902588]
[1765190885666,0.01084116,92241.0,92239.0,0.02902588]
[1765190885846,0.22927698,92243.0,92240.0,0.2168256]
[1765190886223,0.22766249,92242.0,92240.0,0.02902588]
[1765190886454,0.22766249,92242.0,92239.0,0.02902588]
[1765190886816,0.21843358,92243.0,92240.0,0.21682567]
[1765190887015,0.22043358,92243.0,92240.0,0.21682567]
[1765190887311,0.01084104,92242.0,92239.0,0.02902588]
[1765190887536,0.2168234,92241.0,92239.0,0.02902588]
[1765190887741,0.00261287,92242.0,92240.0,0.21682355]
[1765190887943,0.21943456,92242.0,92240.0,0.21682355]
[1765190888140,0.21943456,92242.0,92239.0,0.25669403]
[1765190888472,0.21682566,92241.0,92239.0,0.02902588]
[1765190888714,0.2302756,92242.0,92239.0,0.02902588]
[1765190888846,0.2292756,92242.0,92239.0,0.02902588]
[1765190889042,0.21682567,92240.0,92239.0,0.02902588]
[1765190890053,0.01345391,92242.0,92239.0,0.24585329]
[1765190890288,0.22927643,92242.0,92239.0,0.02902588]
[1765190890491,0.01245391,92242.0,92239.0,0.2458539]
[1765190890719,0.001,92240.0,92239.0,0.2458539]
[1765190890905,0.22927515,92242.0,92239.0,0.2458539]
[1765190891149,0.01245391,92242.0,92239.0,0.02902588]
[1765190891530,0.22766448,92241.0,92238.0,0.02902588]
[1765190891886,0.22766448,92241.0,92239.0,0.21682796]
[1765190892289,0.01245391,92242.0,92239.0,0.21682796]
[1765190892700,0.00040449,92240.0,92239.0,0.22766936]
[1765190893335,0.21682802,92239.0,92238.0,0.02902588]
[1765190893547,0.21683507,92236.0,92235.0,0.02902588]
[1765190893785,0.2168461,92232.0,92230.0,0.03866532]
[1765190893989,0.21684918,92230.0,92228.0,0.03866532]
[1765190894194,0.01084269,92228.0,92223.0,0.03866532]
[1765190894398,0.0147,92224.0,92222.0,0.22771133]
[1765190894606,0.01084269,92228.0,92223.0,0.02901901]
[1765190894801,0.21685942,92226.0,92222.0,0.25673034]
[1765190895225,0.21686345,92224.0,92222.0,0.02901901]
[1765190895587,0.21686345,92224.0,92221.0,0.01084351]
[1765190895810,0.01084281,92227.0,92222.0,0.22771104]
[1765190896011,0.01084269,92228.0,92225.0,0.01084304]
[1765190896224,0.01084269,92228.0,92223.0,0.22770892]
[1765190896375,0.0147,92237.0,92222.0,0.01084339]
[1765190896376,0.0108414,92239.0,92236.0,0.01084175]
[1765190896731,0.01084163,92237.0,92234.0,0.2276797]
[1765190896877,0.22767493,92237.0,92234.0,0.01084198]
[1765190897198,0.01084163,92237.0,92234.0,0.22768028]
[1765190897437,0.01084163,92237.0,92232.0,0.01084222]
[1765190897587,0.01084175,92236.0,92233.0,0.22768218]
[1765190897788,0.22767877,92237.0,92234.0,0.21683757]
[1765190897998,0.22767877,92237.0,92235.0,0.21683736]
[1765190897999,0.01184163,92237.0,92235.0,0.21683736]
[1765190898179,0.23067507,92237.0,92234.0,0.22768152]
[1765190898381,0.22967507,92237.0,92234.0,0.22768152]
[1765190898813,0.001,92236.0,92234.0,0.22768152]
[1765190899296,0.001,92236.0,92235.0,0.21683742]
[1765190899613,0.002,92236.0,92235.0,0.21683742]
[1765190900052,0.22872392,92242.0,92239.0,0.22766905]
[1765190900707,0.01190231,92242.0,92240.0,0.21682503]
[1765190900913,0.21788412,92242.0,92239.0,0.0108414]
[1765190901116,0.2168243,92241.0,92239.0,0.0108414]
[1765190901416,0.01190231,92242.0,92240.0,0.21682452]
[1765190901417,0.00106127,92242.0,92240.0,0.21682452]
[1765190901798,0.21788278,92242.0,92239.0,0.22766925]
[1765190902524,0.22088278,92242.0,92239.0,0.22766925]
[1765190902821,0.22088278,92242.0,92238.0,0.21682831]
[1765190902822,0.01084116,92241.0,92238.0,0.01084151]
[1765190902972,0.23272354,92242.0,92239.0,0.21682732]
[1765190903817,0.21682395,92241.0,92239.0,0.21682732]
[1765190904016,0.23272354,92242.0,92239.0,0.21682678]
[1765190904391,0.00506127,92242.0,92240.0,0.21682539]
[1765190904577,0.00406127,92242.0,92240.0,0.21682539]
[1765190904956,0.001,92241.0,92240.0,0.21682539]
[1765190905348,0.00143338,92241.0,92240.0,0.21682539]
[1765190906148,0.00043338,92241.0,92239.0,0.22766889]
[1765190906453,0.00043338,92241.0,92231.0,0.02901901]
[1765190906454,0.01084222,92232.0,92229.0,0.02901901]
[1765190906627,0.21684458,92232.0,92230.0,0.01084245]
[1765190906948,0.00735,92231.0,92229.0,0.22769333]
[1765190907249,0.00735,92231.0,92230.0,0.21684918]
[1765190907925,0.00735,92231.0,92229.0,0.22769333]
[1765190908109,0.00735,92231.0,92230.0,0.21684918]
[1765190908540,0.00023115,92234.0,92233.0,0.21684212]
[1765190908716,0.00023115,92234.0,92232.0,0.21684387]
[1765190909263,0.00023115,92234.0,92233.0,0.25560212]
[1765190909462,0.00023115,92234.0,92233.0,0.27779412]
[1765190909771,0.00223115,92234.0,92233.0,0.27779412]
[1765190910119,0.00223115,92234.0,92233.0,0.25615371]
[1765190910668,0.00023115,92234.0,92233.0,0.24641272]
[1765190911089,0.00123115,92234.0,92233.0,0.21739371]
[1765190911285,0.00123115,92234.0,92233.0,0.24641272]
[1765190911806,0.00223115,92234.0,92233.0,0.24641272]
[1765190912372,0.00223115,92234.0,92233.0,0.21739371]
[1765190916027,0.01693115,92234.0,92233.0,0.21739371]
[1765190916216,0.02777313,92234.0,92230.0,0.22768967]
[1765190916410,0.0147,92233.0,92231.0,0.21684507]
[1765190916717,0.01307313,92234.0,92233.0,0.02763]
[1765190916718,0.00223115,92234.0,92233.0,0.02763]
[1765190916880,0.00223115,92234.0,92233.0,0.24502371]
[1765190917104,0.00123115,92234.0,92233.0,0.29046571]
[1765190917447,0.00123115,92234.0,92233.0,0.26827371]
[1765190917710,0.00123115,92234.0,92233.0,0.29046571]
[1765190918566,0.00023115,92234.0,92233.0,0.29046571]
[1765190919112,0.00123115,92234.0,92233.0,0.29046571]
[1765190919510,0.00223115,92234.0,92233.0,0.29046571]
[1765190921654,0.00123115,92234.0,92233.0,0.29046571]
[1765190921860,0.00123115,92234.0,92233.0,0.29146571]
[1765190922257,0.00023115,92234.0,92233.0,0.29146571]
[1765190926278,0.00023115,92234.0,92233.0,0.26927371]
[1765190928503,0.00023115,92234.0,92233.0,0.29146571]
[1765190938050,0.00023115,92234.0,92233.0,0.26927371]
[1765190938501,0.00023115,92234.0,92233.0,0.32735463]
[1765190939085,0.00023115,92234.0,92233.0,0.34954663]
[1765190941181,0.00023115,92234.0,92233.0,0.26927371]
[1765190941593,0.00023115,92234.0,92233.0,0.24602371]
[1765190941923,0.00023115,92234.0,92233.0,0.26852371]